Cogmind - Beta 11.1 @@@ ROGUE MODE // 2022.06.10 @ 04:15:34 // Winter2019/RPGLIKE Player: Exp. Geonium Core Result: Self-destructed Performance ------------- Evolutions (1) 500 Regions Visited (3) 600 Robots Destroyed (14) 70 Value Destroyed (367) 367 Prototype IDs (1) 20 Alien Tech Used (0) 0 Bonus (0) 0 TOTAL SCORE: 1557 Bonus ------- None Cogmind --------- Core Integrity 443/600 Matter 290/300 Energy 280/280 System Corruption 0% Temperature Cool (0) Movement Flying (34) Location -9/Materials Parts ------- > --- POWER (1) -------- Heavy Ion Engine > --- PROPULSION (2) --- Flight Unit VTOL Module > --- UTILITY (2) ------ Transport Network Coupler Light Armor Plating > --- WEAPON (2) ------- Axe > --- INVENTORY (1) ---- Authchip [Propulsion] Peak State ------------ > --- POWER ------------ Heavy Ion Engine > --- PROPULSION ------- Flight Unit VTOL Module > --- UTILITY ---------- Transport Network Coupler Light Armor Plating > --- WEAPON ----------- Axe > --- INVENTORY -------- Authchip [Propulsion] [Rating: 11] Favorites ----------- Power Ion Engine Engine Ion Engine Propulsion Flight Unit Leg Aluminum Leg Flight Unit Flight Unit Utility Light Armor Plating Processor Transport Network Coupler Hackware Authchip [Storage] Protection Light Armor Plating Weapon Axe Ballistic Gun Assault Rifle Slashing Weapon Axe Build | -11 -10 -10 -9 ------- Run | Scr Mat Min Mat Slots Evolved 3 | . 1 . 2 Power . | . . . . Propulsion 1 | . 1 . . Utility 1 | . . . 1 Weapon 1 | . . . 1 Parts Attached 10 | . 2 1 7 Power 1 | . . . 1 Engine 1 | . . . 1 Core . | . . . . Reactor . | . . . . Propulsion 3 | . 2 . 1 Treads . | . . . . Leg . | . . . . Wheel . | . . . . Hover . | . . . . Flight 3 | . 2 . 1 Utility 5 | . . . 5 Device . | . . . . Storage . | . . . . Processor 2 | . . . 2 Hackware 1 | . . . 1 Protection 2 | . . . 2 Artifact . | . . . . Weapon 1 | . . 1 . Energy Gun . | . . . . Energy Cannon . | . . . . Ballistic Gun . | . . . . Ballistic Cannon . | . . . . Launcher . | . . . . Special Weapon . | . . . . Impact Weapon . | . . . . Slashing Weapon 1 | . . 1 . Piercing Weapon . | . . . . Special Melee Weapon . | . . . . Unidentified Prototypes 1 | . . . 1 Parts Lost 1 | . . 1 . Power . | . . . . Propulsion 1 | . . 1 . Utility . | . . . . Weapon . | . . . . Highest Loss Streak 1 | . . 1 . To Critical Strikes . | . . . . Average Slot Usage (%) 71 | . 75 69 76 Engine 20 | . 24 20 16 Leg 2 | . 10 . . Flight 24 | . 17 29 18 Processor 1 | . . . 10 Protection 1 | . . . 11 Ballistic Gun 6 | . 24 . . Slashing Weapon 14 | . . 19 17 Naked Turns . | . . . . Heaviest Build 14 | 7 7 8 14 Greatest Support 18 | 10 13 13 18 Greatest Overweight (x) . | . . . . Average Overweight (x) . | . . . . Largest Inventory Capacity 1 | . . . 1 Average Capacity . | . . . . Most Carried 1 | . . . 1 Average Carried . | . . . . Final Capacity 1 | . . . 1 Final Carried 1 | . . . 1 Class Distribution -------------------- 100% | Mutant Dominant Class ---------------- Mutant | -10/Materials Mutant | -10/Mines Mutant | -9/Materials Resources | -11 -10 -10 -9 ----------- Run | Scr Mat Min Mat Matter Collected 380 | 200 110 10 60 Remotely . | . . . . Salvage Created 621 | . 146 161 314 Parts 35 | . 11 7 17 Haulers Intercepted 2 | . . . 2 Recyclers Shooed . | . . . . Parts Field Recycled . | . . . . Retrieved Matter . | . . . . Parts Self-Destructed . | . . . . Prevented . | . . . . Kills | -11 -10 -10 -9 ------- Run | Scr Mat Min Mat Combat Hostiles Destroyed 11 | . 5 4 2 Melee 6 | . . 4 2 Guns 5 | . 5 . . Classes Destroyed 7 | . 2 2 3 Worker 1 | . . 1 . Hauler 2 | . . . 2 Recycler 1 | . . . 1 Swarmer 3 | . 3 . . Grunt 5 | . 2 3 . Sentry 2 | . . . 2 Assembled 1 | . . 1 . Best Kill Streak 3 | . 3 3 2 Combat Bots Only 3 | . 3 2 1 Max Kills in Single Turn 1 | . 1 1 1 Gunslinging . | . . . . Exploded . | . . . . Melee 1 | . . 1 1 Uniques/NPCs Destroyed . | . . . . Combat | -11 -10 -10 -9 -------- Run | Scr Mat Min Mat Damage Taken 461 | . 172 226 63 Core 376 | . 143 191 42 Absorbed by Shields . | . . . . Redirected to Core 237 | . 92 118 27 Core Remaining (%) 90 | 100 . 80 . Volleys Fired 30 | . 30 . . Largest 1 | . 1 . . Hottest 20 | . 20 . . Shots Fired 30 | . 30 . . Gun 30 | . 30 . . Cannon . | . . . . Launcher . | . . . . Special . | . . . . Kinetic 30 | . 30 . . Thermal . | . . . . Explosive . | . . . . Electromagnetic . | . . . . Robot Hit Streak 5 | . 5 . . Robot Miss Streak 4 | . 4 . . Penetration Max . | . . . . Secondary Targets . | . . . . Shots Hit Robots 30 | . 11 11 8 Core Hits 16 | . 6 5 5 Critical Kills . | . . . . Critical Parts Destroyed . | . . . . Critical Strikes 1 | . . 1 . Sever 1 | . . 1 . Melee Attacks 23 | . . 15 8 Impact . | . . . . Slashing 23 | . . 15 8 Piercing . | . . . . Sneak Attacks 5 | . . 1 4 Combat Hostiles . | . . . . Follow-up Attacks . | . . . . Damage Inflicted 1038 | . 141 439 458 Guns 141 | . 141 . . Cannons . | . . . . Explosions . | . . . . Melee 897 | . . 439 458 Ramming . | . . . . Kinetic 141 | . 141 . . Thermal . | . . . . Explosive . | . . . . Electromagnetic . | . . . . Impact . | . . . . Slashing 897 | . . 439 458 Piercing . | . . . . Highest Corruption . | . . . . Average Corruption . | . . . . Corruption Purged . | . . . . Corruption Blocked . | . . . . Overload Shots . | . . . . Overflow Damage 31 | . . 6 25 Projectiles . | . . . . Explosions . | . . . . Melee 31 | . . 6 25 Knockbacks . | . . . . Impact . | . . . . Kinetic . | . . . . Secondary . | . . . . Self-Inflicted Damage . | . . . . Shots . | . . . . Rammed . | . . . . Targets Rammed . | . . . . Kicked . | . . . . Crushed . | . . . . Highest Temperature . | . . . . Average Temperature . | . . . . Received Heat Transfer 171 | . 36 111 24 Siege Activations . | . . . . Robots Corrupted . | . . . . Combat Hostiles . | . . . . Parts Fried . | . . . . Impact Corruptions . | . . . . Robots Melted . | . . . . Combat Hostiles . | . . . . Parts Melted . | . . . . Heat Transferred . | . . . . Parts Sabotaged . | . . . . Parts Stolen . | . . . . Parts Stripped . | . . . . Power Chain Reactions . | . . . . Missiles Intercepted . | . . . . Alert | -11 -10 -10 -9 ------- Run | Scr Mat Min Mat Peak Influence 209 | . 190 209 117 Initial 79 | . . 79 . Average 101 | . 55 129 63 Maximum Alert Level 1 | . . 1 . Low Security (%) 98 | 100 100 98 100 Level 1 1 | . . 1 . Level 2 . | . . . . Level 3 . | . . . . Level 4 . | . . . . Level 5 . | . . . . High Security . | . . . . Max Security . | . . . . Squads Dispatched 3 | . 3 . . Investigation 1 | . 1 . . Extermination . | . . . . Reinforcement 2 | . 2 . . Assault . | . . . . Garrison . | . . . . Intercept . | . . . . Searches Triggered . | . . . . Construction Impeded . | . . . . Haulers Reinforced . | . . . . Active Scanning Responses . | . . . . Cargo Convoy Interrupts . | . . . . Stealth | -11 -10 -10 -9 --------- Run | Scr Mat Min Mat Distress Signals 1 | . . . 1 Communications Jammed . | . . . . Distress Signals . | . . . . Times Spotted 29 | . 15 6 8 Peak Tracking Total 6 | . 6 3 6 Tactical Retreats 3 | . 2 1 . Traps | -11 -10 -10 -9 ------- Run | Scr Mat Min Mat Traps Triggered . | . . . . Indirectly . | . . . . Trap Hack Attempts . | . . . . Triggered . | . . . . Disarmed . | . . . . Reprogrammed . | . . . . Reused . | . . . . Traps Extracted . | . . . . Installed . | . . . . Triggered . | . . . . Machines | -11 -10 -10 -9 ---------- Run | Scr Mat Min Mat Machines Disabled 4 | . 1 3 . Max in Single Turn 1 | . 1 1 . Machines Sabotaged . | . . . . Garrisons Compromised . | . . . . Overloaded Fab Kills . | . . . . Hacking | -11 -10 -10 -9 --------- Run | Scr Mat Min Mat Machines Accessed 5 | . 1 1 3 Terminals 4 | . 1 . 3 Fabricators . | . . . . Repair Stations . | . . . . Recycling Units . | . . . . Scanalyzers . | . . . . Garrison Access . | . . . . Total Hacks 9 | . 3 1 5 Successful 2 | . . 1 1 Failed 7 | . 3 . 4 Catastrophic 1 | . 1 . . Database Lockouts . | . . . . Manual 5 | . 3 . 2 Terminals 8 | . 3 . 5 Fabricators . | . . . . Repair Stations . | . . . . Recycling Units . | . . . . Scanalyzers . | . . . . Garrison Access . | . . . . Terminal Hacks 1 | . . 1 . Open Door 1 | . . 1 . Fabricator Hacks . | . . . . Repair Station Hacks . | . . . . Recycling Unit Hacks . | . . . . Scanalyzer . | . . . . Garrison Access Hacks . | . . . . Unauthorized Hacks 1 | . . . 1 Terminals 1 | . . . 1 Detonate 1 | . . . 1 Fabricators . | . . . . Repair Stations . | . . . . Recycling Units . | . . . . Scanalyzers . | . . . . Garrison Access . | . . . . Data Cores Recovered . | . . . . Used . | . . . . Hacking Detections 4 | . 1 . 3 Full Trace Events 2 | . 1 . 1 Feedback Events . | . . . . Feedback Blocked . | . . . . Robot Schematics Acquired . | . . . . Robots Built . | . . . . Authchips . | . . . . Time . | . . . . Total Robot Build Rating . | . . . . Part Schematics Acquired . | . . . . Parts Built . | . . . . Authchips . | . . . . Time . | . . . . Total Part Build Rating . | . . . . Parts Repaired . | . . . . Time . | . . . . Parts Recycled . | . . . . Recycled Matter . | . . . . Retrieved Matter . | . . . . Retrieved Components . | . . . . Parts Scanalyzed . | . . . . Part Schematics Acquired . | . . . . Parts Damaged . | . . . . Bothacking | -11 -10 -10 -9 ------------ Run | Scr Mat Min Mat Used RIF Installer . | . . . . Robots Hacked . | . . . . Non-combat . | . . . . Combat . | . . . . Robot Hacks Applied . | . . . . Relay Couplers Released . | . . . . Fabnet Peak Effective % . | . . . . Robots Rewired . | . . . . Allies Hacked . | . . . . Hacks Repelled . | . . . . Allies | -11 -10 -10 -9 -------- Run | Scr Mat Min Mat Total Allies . | . . . . Largest Group . | . . . . Highest-Rated Group . | . . . . Highest-Rated Ally . | . . . . Total Orders . | . . . . Ally Attacks . | . . . . Total Damage . | . . . . Kills . | . . . . Allies Corrupted . | . . . . Allies Melted . | . . . . Intel | -11 -10 -10 -9 ------- Run | Scr Mat Min Mat Robot Analysis Total . | . . . . Derelict Logs Recovered 2 | . . 2 . Drone Launches . | . . . . Drone Recoveries . | . . . . Exploration | -11 -10 -10 -9 ------------- Run | Scr Mat Min Mat Turns Passed 881 | 2 225 528 126 Spaces Moved 873 | 1 252 400 220 Core . | . . . . Treads . | . . . . Legs 63 | 1 62 . . Wheels . | . . . . Hover . | . . . . Flight 810 | . 190 400 220 Fastest Speed 34 | 120 37 37 34 Average Speed 44 | 120 58 37 39 Slowest Speed 120 | 120 120 40 40 Overloaded Moves . | . . . . Propulsion Burnouts . | . . . . Robots Hopped 1 | . 1 . . Cave-ins Triggered . | . . . . Exploration Rate (%) 42 | 2 66 71 30 Regions Visited 3 Branch Regions 1 Pre-discovered Areas . | . . . . Known Exits Taken . | . . . . Unknown Exits Taken 3 | 1 1 1 . Scrap Searched 2 | . . 2 . Spaces Dug . | . . . . Terrain Destroyed . | . . . . Melee . | . . . . Projectile . | . . . . AOE . | . . . . Terrain Rammed . | . . . . Walls Destroyed . | . . . . Machines Disabled . | . . . . Actions | -11 -10 -10 -9 --------- Run | Scr Mat Min Mat Total 1293 | 2 297 752 242 Wait 344 | 2 11 329 2 Move 868 | . 249 399 220 Hop 1 | . 1 . . Pick Up 1 | . . . 1 Fast Attach 10 | . 2 1 7 Attach . | . . . . Detach . | . . . . Swap . | . . . . Drop 6 | . 1 1 4 Fire 30 | . 30 . . Melee 23 | . . 15 8 Ram . | . . . . Kick . | . . . . Crush . | . . . . Escape Stasis . | . . . . Rewire . | . . . . Trap . | . . . . Miscellaneous 10 | . 3 7 . Route ------- -11/Scrapyard -10/Materials (discovered 3 exits: *Mat x2 / *Min) -10/Mines -9/Materials (discovered 1 exit: Mat) History --------- Turn | Location | Event 3 | -11/Scrapyard | Discovered new exit (range 0) 3 | -11/Scrapyard | Entered Materials 120 | -10/Materials | Discovered new exit (range 6) 130 | -10/Materials | Discovered new exit (range 11) 181 | -10/Materials | Upgraded with Propulsion slot (x1) 210 | -10/Materials | Discovered new exit (range 4) 228 | -10/Materials | Entered Mines 231 | -10/Mines | Learned 2 Materials zone layouts 239 | -10/Mines | Met a Derelict who couldn't figure out how to use a Trap Extractor 279 | -10/Mines | Reached level 2 318 | -10/Mines | Build established: Mutant 343 | -10/Mines | Assembled infested the area 348 | -10/Mines | Assisted by a Guerilla fighting off Assembled 450 | -10/Mines | Discovered new exit (range 13) 756 | -10/Mines | Entered Materials 757 | -9/Materials | Identified exit to Materials 758 | -9/Materials | Reached level 3 835 | -9/Materials | Upgraded with Utility slot (x1) 835 | -9/Materials | Upgraded with Weapon slot (x1) 882 | -9/Materials | Self-destructed Last Messages --------------- 00850_ T-07 Excavator is excavating. 00853_ Sneak attack on A-02 Transporter. 00854_ T-07 Excavator is excavating. 00856_ A-02 Transporter destroyed. 00858_ T-07 Excavator is excavating. 00859_ Acquired 20 matter. 00860_ Connecting with Terminal... >>Trojan(Detonate) Trojan loaded successfully. Testing... Scanning machine control network... Found 2 applicable machines. LQ2BURDK6O: Nuclear Reactor THNZOO4BQ5: Nuclear Reactor Infected machine control systems. 00863_ T-07 Excavator is excavating. 00863_ U-05 Engineer lays Concrete. 00867_ Connecting with Terminal... 00872_ K-01 Serf collects debris. 00878_ Acquired VTOL Module. Map ----- +----------------------------------------------------+ | ??????????????????????""" #?????????# | | ???????????????????????"" #?????????# | | ??????????????????????? #?????????# | | ????????????????????? "?" #?????????# | | ????????????????????? """ #????###??# | | ??????????????????????""" #???# ##?# | | ?????????#?????????????? #???# ### | | ????????## ###############+###### ### | | ????????# | | ????????+ T | | ????????# | | ??????????# #####+##### a#######+### !% | | ?????????????# # #??# ## [% | | ?????????????# """# #??# ## [[ | | ?????????????# """# #??# " " ## | | ?????????????# """# #??#! "T" ## | | ?????????????# + #??# """ ## | | ?????????????# """# a#??# ## | | ?????????????# """# #??######### | | ?????????????# """# #??????????# | | ?????????????#! # #??????????# | | ?????????????####+##### +??????????# | | ????????????????# #???# #??????????# | | ???????????##???# #???# #??????????# | | ????# ###"T"## #???? #??????????# | | ????# @ #???? ???????????# | | ????????### """#????????######## | | ??????????# ![! R"#????????# # | | ??????????# [[!"""#????????# """ # | | ??????????# [!!####????????# """ + | | ??????????# "???????????# *""" #!%! | | ??????????# gl T???????????# #!!= | | ??????????# "#??????????# # * | | ??????????# ]]] ##??????????#########+# | | ????# ]]] ???????????? | | ????# ]] ??????????# "" | | ????# ??????????# "" | | ????# ??????????# "" | | ????####### ##### ??????????# | | ???????####+##### ??????????# "" | | ???????# T # ??????????# "" | | ???????# # ??????????# ?? | | ######## #a ??????????# ?? | | # """ ## """ # ??????????####?? | | # "Y" ## """ # ???????????????? | | # ## """ + ???????????????? | | # ## """ ######## ???????????????? | | # ## #??????# ???????????????? | | # """ ## ######## ???????????????? | | # """ #######+### ##+???????????????? | +----------------------------------------------------+ Best States ------------- Heat Dissipation 25 Energy Generation 14 Energy Capacity 280 Matter Stores 300 Matter Capacity 300 Sight Range 20 Terrain Scan Density 10 Armor Coverage 150 Resistance: KI 15 Evasion (%) 63 Authchip Count 1 Item Schematics ----------------- None Robot Schematics ------------------ None Fabricated ------------ Nothing Alien Tech Used ----------------- None Achievements -------------- None Challenges ------------ None RPGLIKE | -11 -10 -10 -9 --------- Run | Scr Mat Min Mat Levels Raised 2 | . . 1 1 XP Earned 6760 | 3000 725 1125 1910 XP Spent 5500 | . 1650 2000 1850 Upgrades 14 | . 5 5 4 Propulsion Slot 1 | . 1 . . Utility Slot 1 | . . . 1 Weapon Slot 1 | . . . 1 Mass Support 2 | . 1 . 1 Inventory Capacity 1 | . . . 1 Melee Accuracy 5 | . . 5 . KI Resistance % 3 | . 3 . . Protomatter Created 73 | . 17 56 . Integrity Restored 219 | . 51 168 . Core 219 | . 51 168 . Protomatter Decayed 21 | . . 21 . Game ------ Seed ChainPointBiocell Manual? 0 Play Time 00:13:12 Cumulative 225.8 hours Start 2022.06.09 @ 23:24:10 End 2022.06.10 @ 04:15:34 Sessions 3 Manual Loads 0 Difficulty Rogue Special Mode Winter2019/RPGLIKE Game No. 284 Rogue 284 Adventurer 0 Explorer 0 Win Type - Total 11 Types 8/0/2/1/0/0/0/0/0 Lore% 64 Gallery% 84 Achievement% 73 Wizard Run 0 Options --------- ASCII 0 Keyboard 0 Movement Numpad Keybinds 0 Fullscreen 1 Font 18/Terminus Map View 76x50 Tactical HUD 1 Map Filters NONE Filters NONE Steam 1 RUN: 8abf6e7a-07ea-48b1-893c-f8ce161dd388